[Event "*** Titled Tuesday Blitz"]
[Site "Chess.com"]
[Date "2018.07.03"]
[Round "5"]
[White "Hrant_ChessMood"]
[Black "champ2005"]
[Result "1/2-1/2"]
[WhiteElo "2895"]
[BlackElo "2720"]
[TimeControl "180+2"]
[EndTime "14:05:16 PDT"]
[Termination "Game drawn by agreement"]

1. d4 {[%clk 0:02:55.6]} 1... Nf6 {[%clk 0:03:00]} 2. c4 {[%clk 0:02:55.7]} 2...
e6 {[%clk 0:03:00.9]} 3. Nf3 {[%clk 0:02:56.8]} 3... d5 {[%clk 0:03:01.5]} 4.
Nc3 {[%clk 0:02:57.7]} 4... c6 {[%clk 0:03:02.2]} 5. Bg5 {[%clk 0:02:57.1]} 5...
dxc4 {[%clk 0:03:03.2]} 6. e4 {[%clk 0:02:56.9]} 6... b5 {[%clk 0:03:04.1]} 7.
e5 {[%clk 0:02:58.2]} 7... h6 {[%clk 0:03:05.1]} 8. Bh4 {[%clk 0:02:59.4]} 8...
g5 {[%clk 0:03:06.1]} 9. Nxg5 {[%clk 0:03:00.6]} 9... hxg5 {[%clk 0:03:07.4]}
10. Bxg5 {[%clk 0:03:02.5]} 10... Be7 {[%clk 0:03:08.3]} 11. exf6 {[%clk
0:03:02.9]} 11... Bxf6 {[%clk 0:03:09.5]} 12. Bxf6 {[%clk 0:03:04.8]} 12... Qxf6
{[%clk 0:03:10.8]} 13. g3 {[%clk 0:03:06.7]} 13... Bb7 {[%clk 0:02:39.7]} 14.
Bg2 {[%clk 0:03:05]} 14... Na6 {[%clk 0:02:40.7]} 15. Ne4 {[%clk 0:02:51.8]}
15... Qe7 {[%clk 0:02:36]} 16. O-O {[%clk 0:02:52.4]} 16... O-O-O {[%clk
0:02:32.7]} 17. a4 {[%clk 0:02:51.9]} 17... f5 {[%clk 0:02:28.2]} 18. axb5
{[%clk 0:02:28.3]} 18... cxb5 {[%clk 0:02:25.1]} 19. Rxa6 {[%clk 0:02:29.7]}
19... Bxa6 {[%clk 0:02:26.3]} 20. Nc5 {[%clk 0:02:30.3]} 20... Qxc5 {[%clk
0:02:27]} 21. dxc5 {[%clk 0:02:32.2]} 21... Rxd1 {[%clk 0:02:28]} 22. Rxd1
{[%clk 0:02:34.1]} 22... b4 {[%clk 0:02:18.9]} 23. Ra1 {[%clk 0:02:19.5]} 23...
Bb5 {[%clk 0:02:19.7]} 24. Bf1 {[%clk 0:00:31.5]} 24... Kb7 {[%clk 0:01:55.5]}
25. b3 {[%clk 0:00:23.4]} 25... a6 {[%clk 0:00:39.3]} 26. bxc4 {[%clk
0:00:22.1]} 26... Bc6 {[%clk 0:00:40.3]} 27. h4 {[%clk 0:00:19.9]} 27... Rd8
{[%clk 0:00:34.8]} 28. h5 {[%clk 0:00:20.8]} 28... Bf3 {[%clk 0:00:32.3]} 29.
Bg2 {[%clk 0:00:17.2]} 29... Bxg2 {[%clk 0:00:32.7]} 30. Kxg2 {[%clk 0:00:19.1]}
30... Kc6 {[%clk 0:00:21.2]} 31. Rxa6+ {[%clk 0:00:16.7]} 31... Kxc5 {[%clk
0:00:22.5]} 32. Rxe6 {[%clk 0:00:18.1]} 32... Kxc4 {[%clk 0:00:23.9]} 33. Rc6+
{[%clk 0:00:14.8]} 33... Kd3 {[%clk 0:00:23.5]} 34. Rb6 {[%clk 0:00:13]} 34...
Kc3 {[%clk 0:00:23.5]} 35. Kh3 {[%clk 0:00:11.3]} 35... b3 {[%clk 0:00:21.1]}
36. f4 {[%clk 0:00:09.7]} 36... Rd1 {[%clk 0:00:20.5]} 37. Kh4 {[%clk
0:00:09.9]} 37... b2 {[%clk 0:00:20.4]} 38. Kg5 {[%clk 0:00:10.6]} 38... Rg1
{[%clk 0:00:14.5]} 39. Kxf5 {[%clk 0:00:09.9]} 39... Rxg3 {[%clk 0:00:14.3]} 40.
h6 {[%clk 0:00:11.1]} 40... Rh3 {[%clk 0:00:14.8]} 41. Kg6 {[%clk 0:00:12.3]}
41... Rg3+ {[%clk 0:00:16]} 42. Kf7 {[%clk 0:00:13.1]} 42... Rh3 {[%clk
0:00:16.7]} 43. Kg7 {[%clk 0:00:13.4]} 43... Rg3+ {[%clk 0:00:17.9]} 44. Kf6
{[%clk 0:00:13.4]} 44... Rh3 {[%clk 0:00:18.7]} 45. Kg5 {[%clk 0:00:14.2]} 45...
Rg3+ {[%clk 0:00:19.8]} 46. Kh4 {[%clk 0:00:14.9]} 46... Rg6 {[%clk 0:00:18.4]}
47. Rxg6 {[%clk 0:00:11.1]} 47... b1=Q {[%clk 0:00:18.7]} 48. Kg5 {[%clk
0:00:13]} 48... Qg1+ {[%clk 0:00:19.3]} 49. Kf6 {[%clk 0:00:12.8]} 49... Qb6+
{[%clk 0:00:20.1]} 50. Kg5 {[%clk 0:00:13.7]} 50... Qg1+ {[%clk 0:00:20.6]} 51.
Kf5 {[%clk 0:00:14.7]} 51... Qb1+ {[%clk 0:00:20.8]} 52. Kf6 {[%clk 0:00:15.6]}
52... Qb6+ {[%clk 0:00:21.8]} 53. Kg7 {[%clk 0:00:17.5]} 53... Qc7+ {[%clk
0:00:23]} 54. Kh8 {[%clk 0:00:18.1]} 54... Qxf4 {[%clk 0:00:23.8]} 55. h7 {[%clk
0:00:15.9]} 55... Qf8+ {[%clk 0:00:24.7]} 56. Rg8 {[%clk 0:00:17.1]} 56... Qf6+
{[%clk 0:00:25.8]} 57. Rg7 {[%clk 0:00:17.4]} 57... Qf8+ {[%clk 0:00:21.6]} 58.
Rg8 {[%clk 0:00:18.3]} 1/2-1/2

[Event "*** Titled Tuesday Blitz"]
[Site "Chess.com"]
[Date "2018.07.03"]
[Round "5"]
[White "dretch"]
[Black "plouarzel"]
[Result "1-0"]
[WhiteElo "2782"]
[BlackElo "2483"]
[TimeControl "180+2"]
[EndTime "14:05:27 PDT"]
[Termination "dretch won by resignation"]

1. d4 {[%clk 0:03:01.9]} 1... d6 {[%clk 0:02:56.1]} 2. Nf3 {[%clk 0:03:02.5]}
2... Nf6 {[%clk 0:02:56.4]} 3. c4 {[%clk 0:03:03.6]} 3... g6 {[%clk 0:02:56.2]}
4. Nc3 {[%clk 0:03:04.9]} 4... Nbd7 {[%clk 0:02:57.4]} 5. e4 {[%clk 0:03:06.2]}
5... e5 {[%clk 0:02:57.7]} 6. Be2 {[%clk 0:03:07]} 6... Bg7 {[%clk 0:02:58.3]}
7. O-O {[%clk 0:03:08]} 7... O-O {[%clk 0:02:59.7]} 8. Qc2 {[%clk 0:03:09.2]}
8... c6 {[%clk 0:02:58]} 9. Rd1 {[%clk 0:03:09.4]} 9... Qe7 {[%clk 0:02:58.2]}
10. Be3 {[%clk 0:03:06.4]} 10... Re8 {[%clk 0:02:43.3]} 11. d5 {[%clk
0:03:07.1]} 11... c5 {[%clk 0:02:44.1]} 12. Nd2 {[%clk 0:02:58.7]} 12... Nb6
{[%clk 0:02:24.8]} 13. h3 {[%clk 0:02:59.1]} 13... h6 {[%clk 0:02:10.1]} 14. a3
{[%clk 0:02:58.8]} 14... a5 {[%clk 0:02:07.8]} 15. Nb5 {[%clk 0:02:18.3]} 15...
a4 {[%clk 0:02:04.3]} 16. b4 {[%clk 0:02:16.5]} 16... axb3 {[%clk 0:02:04]} 17.
Qxb3 {[%clk 0:02:17.4]} 17... Na4 {[%clk 0:01:53.6]} 18. Rdb1 {[%clk 0:02:14.8]}
18... Nh7 {[%clk 0:01:48.1]} 19. Qc2 {[%clk 0:01:10]} 19... f5 {[%clk
0:01:42.2]} 20. f3 {[%clk 0:01:11.3]} 20... f4 {[%clk 0:01:36.9]} 21. Bf2 {[%clk
0:01:12.1]} 21... Ng5 {[%clk 0:01:22.3]} 22. Bf1 {[%clk 0:01:13.1]} 22... Bf6
{[%clk 0:01:14.3]} 23. Rb3 {[%clk 0:01:12.7]} 23... Nf7 {[%clk 0:01:14.8]} 24.
Rab1 {[%clk 0:01:11.7]} 24... h5 {[%clk 0:01:05.2]} 25. Be2 {[%clk 0:00:52.9]}
25... Kg7 {[%clk 0:01:06.1]} 26. Ra1 {[%clk 0:00:43.4]} 26... Kh7 {[%clk
0:01:06]} 27. Nb1 {[%clk 0:00:43.8]} 27... g5 {[%clk 0:01:04.5]} 28. N1c3 {[%clk
0:00:44]} 28... Nxc3 {[%clk 0:01:04]} 29. Qxc3 {[%clk 0:00:39.7]} 29... Rg8
{[%clk 0:00:54.3]} 30. Kf1 {[%clk 0:00:40.3]} 30... g4 {[%clk 0:00:54.5]} 31.
hxg4 {[%clk 0:00:40.1]} 31... hxg4 {[%clk 0:00:56.4]} 32. fxg4 {[%clk
0:00:37.4]} 32... Nh6 {[%clk 0:00:56.8]} 33. Qh3 {[%clk 0:00:36.4]} 33... Bxg4
{[%clk 0:00:43.5]} 34. Bxg4 {[%clk 0:00:36.7]} 34... Rxg4 {[%clk 0:00:45.2]} 35.
Rab1 {[%clk 0:00:37.2]} 35... Rag8 {[%clk 0:00:34.2]} 36. Nd4 {[%clk 0:00:30.3]}
36... b5 {[%clk 0:00:20.5]} 37. Rxb5 {[%clk 0:00:21.8]} 37... exd4 {[%clk
0:00:17.2]} 38. Rb7 {[%clk 0:00:22.1]} 38... R8g7 {[%clk 0:00:16]} 39. Rxe7
{[%clk 0:00:22.4]} 39... Rxe7 {[%clk 0:00:17.9]} 40. Rb6 {[%clk 0:00:21.2]}
40... Be5 {[%clk 0:00:17.7]} 41. a4 {[%clk 0:00:20.9]} 41... Reg7 {[%clk
0:00:18.6]} 42. a5 {[%clk 0:00:21.7]} 42... f3 {[%clk 0:00:19.6]} 43. gxf3
{[%clk 0:00:20.3]} 43... Rf4 {[%clk 0:00:18.6]} 44. Rb3 {[%clk 0:00:19.9]} 44...
Ra7 {[%clk 0:00:16.6]} 45. Ra3 {[%clk 0:00:18.6]} 45... Rff7 {[%clk 0:00:15.9]}
46. a6 {[%clk 0:00:18.5]} 46... Rf6 {[%clk 0:00:15.5]} 47. Be1 {[%clk
0:00:18.7]} 47... Bf4 {[%clk 0:00:12.9]} 48. Bh4 {[%clk 0:00:17.4]} 48... Rff7
{[%clk 0:00:13]} 49. Bf2 {[%clk 0:00:18.1]} 49... Rf6 {[%clk 0:00:13.8]} 50. Qc8
{[%clk 0:00:18.3]} 50... Rff7 {[%clk 0:00:10.3]} 51. Rb3 {[%clk 0:00:18]} 51...
Rac7 {[%clk 0:00:09.6]} 52. Qb8 {[%clk 0:00:17.8]} 52... Be3 {[%clk 0:00:06.9]}
53. Bxe3 {[%clk 0:00:17.6]} 53... Rxf3+ {[%clk 0:00:06.3]} 54. Ke2 {[%clk
0:00:18.4]} 54... Rcf7 {[%clk 0:00:04.9]} 55. Bxd4 {[%clk 0:00:16]} 55... Rxb3
{[%clk 0:00:04.5]} 56. Qxb3 {[%clk 0:00:15.2]} 56... cxd4 {[%clk 0:00:05.7]} 57.
Qb7 {[%clk 0:00:15.7]} 57... Ng4 {[%clk 0:00:07.2]} 58. Qxf7+ {[%clk 0:00:16.2]}
1-0

[Event "*** Titled Tuesday Blitz"]
[Site "Chess.com"]
[Date "2018.07.03"]
[Round "5"]
[White "Grebeniuk-S"]
[Black "Yurovskykh_Oleksandr"]
[Result "1-0"]
[WhiteElo "2465"]
[BlackElo "2404"]
[TimeControl "180+2"]
[EndTime "14:05:30 PDT"]
[Termination "Grebeniuk-S won by resignation"]

1. d4 {[%clk 0:03:01.9]} 1... Nf6 {[%clk 0:02:57]} 2. Nf3 {[%clk 0:03:02.5]}
2... g6 {[%clk 0:02:54.8]} 3. Bg5 {[%clk 0:03:03.2]} 3... Bg7 {[%clk 0:02:55.8]}
4. Nbd2 {[%clk 0:03:04.7]} 4... d5 {[%clk 0:02:56.8]} 5. e3 {[%clk 0:03:05.6]}
5... O-O {[%clk 0:02:57.9]} 6. Bd3 {[%clk 0:03:03.3]} 6... c5 {[%clk 0:02:57.3]}
7. c3 {[%clk 0:03:04.3]} 7... Nc6 {[%clk 0:02:58.5]} 8. O-O {[%clk 0:03:05.5]}
8... Qb6 {[%clk 0:02:47.3]} 9. Rb1 {[%clk 0:03:06.4]} 9... Nd7 {[%clk
0:02:45.8]} 10. c4 {[%clk 0:02:48.5]} 10... cxd4 {[%clk 0:02:36]} 11. cxd5
{[%clk 0:02:48]} 11... Nce5 {[%clk 0:02:32.9]} 12. Nc4 {[%clk 0:02:40.5]} 12...
Nxc4 {[%clk 0:02:27.5]} 13. Bxc4 {[%clk 0:02:42.4]} 13... dxe3 {[%clk
0:02:23.1]} 14. Bxe3 {[%clk 0:02:44.3]} 14... Qd8 {[%clk 0:02:18.7]} 15. Bd4
{[%clk 0:02:25.3]} 15... Bxd4 {[%clk 0:02:15.1]} 16. Qxd4 {[%clk 0:02:25.6]}
16... Nb6 {[%clk 0:02:09.9]} 17. Bb3 {[%clk 0:02:21.2]} 17... Qd6 {[%clk
0:02:10.9]} 18. Rfe1 {[%clk 0:02:19.4]} 18... Bf5 {[%clk 0:02:11.7]} 19. Rbd1
{[%clk 0:02:17.4]} 19... Rac8 {[%clk 0:02:06.3]} 20. Rd2 {[%clk 0:02:04.1]}
20... Rc7 {[%clk 0:02:04.3]} 21. h4 {[%clk 0:01:34.4]} 21... h5 {[%clk
0:02:02.4]} 22. Qe3 {[%clk 0:01:11]} 22... Rfc8 {[%clk 0:02:02.1]} 23. Qh6
{[%clk 0:01:08]} 23... Qf6 {[%clk 0:01:58.7]} 24. Rde2 {[%clk 0:00:53.4]} 24...
Bg4 {[%clk 0:01:32.4]} 25. Re3 {[%clk 0:00:54.3]} 25... Qg7 {[%clk 0:00:48]} 26.
Qxg7+ {[%clk 0:00:44]} 26... Kxg7 {[%clk 0:00:49.9]} 27. Rxe7 {[%clk 0:00:45.4]}
27... Bxf3 {[%clk 0:00:43.3]} 28. gxf3 {[%clk 0:00:45.9]} 28... Kf6 {[%clk
0:00:26.9]} 29. d6 {[%clk 0:00:41.2]} 29... Rxe7 {[%clk 0:00:24.4]} 30. Rxe7
{[%clk 0:00:43.1]} 30... Rd8 {[%clk 0:00:24.3]} 31. Rxf7+ {[%clk 0:00:40.9]}
31... Ke5 {[%clk 0:00:25.6]} 32. Rxb7 {[%clk 0:00:35.4]} 32... Rxd6 {[%clk
0:00:23.5]} 33. Rxa7 {[%clk 0:00:35.7]} 33... Rd4 {[%clk 0:00:18.3]} 34. Ra5+
{[%clk 0:00:30.7]} 34... Kd6 {[%clk 0:00:17.9]} 35. Rg5 {[%clk 0:00:29.5]} 35...
Rxh4 {[%clk 0:00:19.4]} 36. Rxg6+ {[%clk 0:00:30.4]} 36... Kc5 {[%clk 0:00:21]}
37. Kg2 {[%clk 0:00:28.2]} 37... Nd7 {[%clk 0:00:20.6]} 38. Kg3 {[%clk
0:00:21.2]} 38... Rd4 {[%clk 0:00:20.3]} 39. Rg5+ {[%clk 0:00:21.7]} 39... Kd6
{[%clk 0:00:21.3]} 40. Rxh5 {[%clk 0:00:22]} 40... Nc5 {[%clk 0:00:22.2]} 41.
Rxc5 {[%clk 0:00:19.5]} 41... Kxc5 {[%clk 0:00:24.1]} 42. f4 {[%clk 0:00:18.6]}
42... Rd2 {[%clk 0:00:25.4]} 43. f5 {[%clk 0:00:19.7]} 43... Kd6 {[%clk
0:00:26.4]} 44. f6 {[%clk 0:00:20.5]} 44... Rxb2 {[%clk 0:00:27.2]} 45. f7
{[%clk 0:00:21.1]} 45... Ke7 {[%clk 0:00:28.4]} 46. Kf3 {[%clk 0:00:22.3]} 46...
Rd2 {[%clk 0:00:29.2]} 47. Ke3 {[%clk 0:00:23.2]} 47... Rb2 {[%clk 0:00:29.9]}
48. f4 {[%clk 0:00:22.4]} 48... Rb1 {[%clk 0:00:30.9]} 49. f5 {[%clk 0:00:23.3]}
49... Re1+ {[%clk 0:00:31.6]} 50. Kd3 {[%clk 0:00:22.9]} 50... Kf8 {[%clk
0:00:32.5]} 51. Be6 {[%clk 0:00:23.8]} 51... Ra1 {[%clk 0:00:33]} 52. Kc3 {[%clk
0:00:24.6]} 52... Rc1+ {[%clk 0:00:34]} 53. Kb2 {[%clk 0:00:25.6]} 53... Rc7
{[%clk 0:00:33.4]} 54. a4 {[%clk 0:00:26.6]} 54... Rc5 {[%clk 0:00:31.1]} 55.
Kb3 {[%clk 0:00:27.1]} 55... Re5 {[%clk 0:00:32.7]} 56. Kb4 {[%clk 0:00:27.4]}
56... Re4+ {[%clk 0:00:34.6]} 57. Kb5 {[%clk 0:00:28.7]} 57... Re5+ {[%clk
0:00:35.7]} 58. Kb6 {[%clk 0:00:30]} 58... Re1 {[%clk 0:00:26.7]} 59. a5 {[%clk
0:00:31.1]} 59... Rb1+ {[%clk 0:00:28.3]} 60. Ka7 {[%clk 0:00:32.2]} 60... Rb2
{[%clk 0:00:29.3]} 61. a6 {[%clk 0:00:33.3]} 61... Rb1 {[%clk 0:00:30.7]} 62.
Ka8 {[%clk 0:00:34.5]} 62... Rb2 {[%clk 0:00:31.9]} 63. a7 {[%clk 0:00:34.8]}
63... Rb1 {[%clk 0:00:33]} 64. Bd5 {[%clk 0:00:34.9]} 64... Rd1 {[%clk
0:00:21.6]} 65. Kb7 {[%clk 0:00:26.6]} 65... Rb1+ {[%clk 0:00:17.2]} 66. Kc7
{[%clk 0:00:25.3]} 1-0

[Event "*** Titled Tuesday Blitz"]
[Site "Chess.com"]
[Date "2018.07.03"]
[Round "5"]
[White "djogrodek1"]
[Black "GM_dmitrij"]
[Result "1/2-1/2"]
[WhiteElo "2506"]
[BlackElo "2814"]
[TimeControl "180+2"]
[EndTime "14:05:34 PDT"]
[Termination "Game drawn - insufficient material"]

1. e4 {[%clk 0:03:01]} 1... e5 {[%clk 0:02:57.5]} 2. Nf3 {[%clk 0:02:54.4]} 2...
Nc6 {[%clk 0:02:58.5]} 3. d4 {[%clk 0:02:55.8]} 3... exd4 {[%clk 0:02:59.5]} 4.
Nxd4 {[%clk 0:02:57.7]} 4... Nf6 {[%clk 0:03:00.9]} 5. Nxc6 {[%clk 0:02:59.2]}
5... bxc6 {[%clk 0:03:02.8]} 6. e5 {[%clk 0:03:00.5]} 6... Qe7 {[%clk
0:03:04.2]} 7. Qe2 {[%clk 0:03:02]} 7... Nd5 {[%clk 0:03:05.6]} 8. c4 {[%clk
0:03:03.6]} 8... Nb6 {[%clk 0:03:07]} 9. Nc3 {[%clk 0:03:05.1]} 9... Qe6 {[%clk
0:03:07.2]} 10. Qe4 {[%clk 0:03:06.1]} 10... Ba6 {[%clk 0:03:07.8]} 11. b3
{[%clk 0:03:06.9]} 11... Bb4 {[%clk 0:03:09.3]} 12. Bd2 {[%clk 0:03:08.3]} 12...
Bxc3 {[%clk 0:03:10.7]} 13. Bxc3 {[%clk 0:03:10.2]} 13... d5 {[%clk 0:03:11.9]}
14. Qh4 {[%clk 0:03:11.7]} 14... dxc4 {[%clk 0:03:10.8]} 15. Rc1 {[%clk
0:03:13.2]} 15... O-O {[%clk 0:02:56.8]} 16. Be2 {[%clk 0:03:09.2]} 16... Rfe8
{[%clk 0:02:42.7]} 17. O-O {[%clk 0:03:08.2]} 17... Nd5 {[%clk 0:02:42.9]} 18.
Bxc4 {[%clk 0:02:55.9]} 18... Bxc4 {[%clk 0:02:41]} 19. Qxc4 {[%clk 0:02:57.8]}
19... Rab8 {[%clk 0:01:27.5]} 20. Ba1 {[%clk 0:02:38.8]} 20... Nb4 {[%clk
0:01:25.8]} 21. Qe2 {[%clk 0:02:20.2]} 21... f6 {[%clk 0:01:20.4]} 22. Rc4
{[%clk 0:01:38.5]} 22... Nd5 {[%clk 0:01:02.9]} 23. Rfc1 {[%clk 0:01:01.8]}
23... fxe5 {[%clk 0:01:02.2]} 24. Rxc6 {[%clk 0:01:02.7]} 24... Nf4 {[%clk
0:01:03.1]} 25. Qf3 {[%clk 0:00:55.5]} 25... Qd5 {[%clk 0:00:38.5]} 26. Qxd5+
{[%clk 0:00:44.5]} 26... Nxd5 {[%clk 0:00:40.4]} 27. Rd1 {[%clk 0:00:37.9]}
27... Rbd8 {[%clk 0:00:38.9]} 28. g3 {[%clk 0:00:30.1]} 28... Nb4 {[%clk
0:00:39.1]} 29. Rxd8 {[%clk 0:00:20.9]} 29... Rxd8 {[%clk 0:00:41]} 30. Rc1
{[%clk 0:00:22.1]} 30... Nxa2 {[%clk 0:00:41.9]} 31. Re1 {[%clk 0:00:22.5]}
31... Nb4 {[%clk 0:00:42.1]} 32. Bxe5 {[%clk 0:00:21.5]} 32... Re8 {[%clk
0:00:38]} 33. Bc3 {[%clk 0:00:22.7]} 33... Rxe1+ {[%clk 0:00:34.4]} 34. Bxe1
{[%clk 0:00:24.6]} 34... Nd5 {[%clk 0:00:31.7]} 35. Kf1 {[%clk 0:00:24.4]} 35...
Kf7 {[%clk 0:00:33.1]} 36. Ke2 {[%clk 0:00:25.8]} 36... Ke6 {[%clk 0:00:30.8]}
37. Kd3 {[%clk 0:00:27.3]} 37... Nf6 {[%clk 0:00:26.9]} 38. h3 {[%clk
0:00:26.4]} 38... Kd5 {[%clk 0:00:27.9]} 39. Bc3 {[%clk 0:00:26.5]} 39... Ne4
{[%clk 0:00:24.4]} 40. Bd4 {[%clk 0:00:22.1]} 40... c5 {[%clk 0:00:24.7]} 41.
Be3 {[%clk 0:00:21.6]} 41... a5 {[%clk 0:00:20]} 42. g4 {[%clk 0:00:22]} 42...
Nd6 {[%clk 0:00:19.9]} 43. Bd2 {[%clk 0:00:17.2]} 43... c4+ {[%clk 0:00:20.8]}
44. bxc4+ {[%clk 0:00:16.9]} 44... Nxc4 {[%clk 0:00:22.7]} 45. Bc3 {[%clk
0:00:17.6]} 45... g6 {[%clk 0:00:12.4]} 46. f4 {[%clk 0:00:19]} 46... a4 {[%clk
0:00:13.6]} 47. f5 {[%clk 0:00:17.5]} 47... gxf5 {[%clk 0:00:14.4]} 48. gxf5
{[%clk 0:00:19.4]} 48... Ne5+ {[%clk 0:00:12.5]} 49. Ke3 {[%clk 0:00:16.9]}
49... Nf7 {[%clk 0:00:09.1]} 50. Kf4 {[%clk 0:00:15.5]} 50... a3 {[%clk
0:00:10.1]} 51. Bg7 {[%clk 0:00:14]} 51... a2 {[%clk 0:00:10.7]} 52. Ba1 {[%clk
0:00:12.3]} 52... h5 {[%clk 0:00:12.1]} 53. h4 {[%clk 0:00:11.2]} 53... Kc4
{[%clk 0:00:09.7]} 54. f6 {[%clk 0:00:11.8]} 54... Kd5 {[%clk 0:00:09.7]} 55.
Kf5 {[%clk 0:00:12.7]} 55... Kd6 {[%clk 0:00:10.7]} 56. Kg6 {[%clk 0:00:13.5]}
56... Ke6 {[%clk 0:00:12.2]} 57. Kxh5 {[%clk 0:00:14.9]} 57... Kf5 {[%clk
0:00:13.6]} 58. Bb2 {[%clk 0:00:14.9]} 58... Nd6 {[%clk 0:00:09.8]} 59. Kh6
{[%clk 0:00:14.2]} 59... Kg4 {[%clk 0:00:10.1]} 60. Kg7 {[%clk 0:00:09.5]} 60...
Kxh4 {[%clk 0:00:06.9]} 61. f7 {[%clk 0:00:11]} 61... Nxf7 {[%clk 0:00:08.4]}
62. Kxf7 {[%clk 0:00:12.9]} 62... a1=Q {[%clk 0:00:09.4]} 63. Bxa1 {[%clk
0:00:14]} 1/2-1/2

[Event "*** Titled Tuesday Blitz"]
[Site "Chess.com"]
[Date "2018.07.03"]
[Round "5"]
[White "Bryakin_Mikhail"]
[Black "Gr3egor"]
[Result "0-1"]
[WhiteElo "2610"]
[BlackElo "2380"]
[TimeControl "180+2"]
[EndTime "14:06:07 PDT"]
[Termination "Gr3egor won by resignation"]

1. d4 {[%clk 0:03:01.5]} 1... Nf6 {[%clk 0:02:39.3]} 2. c4 {[%clk 0:03:01.6]}
2... e6 {[%clk 0:02:40.4]} 3. g3 {[%clk 0:03:02.2]} 3... c5 {[%clk 0:02:40.8]}
4. d5 {[%clk 0:03:02.9]} 4... exd5 {[%clk 0:02:42.7]} 5. cxd5 {[%clk 0:03:04.8]}
5... d6 {[%clk 0:02:44.2]} 6. Nc3 {[%clk 0:03:03.7]} 6... g6 {[%clk 0:02:45.1]}
7. Nf3 {[%clk 0:03:05]} 7... Bg7 {[%clk 0:02:46.5]} 8. Bg2 {[%clk 0:03:06.6]}
8... O-O {[%clk 0:02:48.2]} 9. O-O {[%clk 0:03:07.9]} 9... Re8 {[%clk
0:02:49.8]} 10. Bf4 {[%clk 0:03:09.4]} 10... Ne4 {[%clk 0:02:51.2]} 11. Nxe4
{[%clk 0:03:10.5]} 11... Rxe4 {[%clk 0:02:53.1]} 12. Nd2 {[%clk 0:03:12]} 12...
Rxf4 {[%clk 0:02:54.5]} 13. gxf4 {[%clk 0:03:13.8]} 13... Bxb2 {[%clk 0:02:56]}
14. Rb1 {[%clk 0:03:14.2]} 14... Bg7 {[%clk 0:02:57.5]} 15. Qa4 {[%clk 0:03:01]}
15... Nd7 {[%clk 0:02:46.9]} 16. Nc4 {[%clk 0:03:01]} 16... Qc7 {[%clk
0:02:40.9]} 17. e3 {[%clk 0:02:54.2]} 17... a6 {[%clk 0:02:41.8]} 18. Qa5 {[%clk
0:02:48.8]} 18... Qxa5 {[%clk 0:02:27]} 19. Nxa5 {[%clk 0:02:50.7]} 19... b5
{[%clk 0:02:23.6]} 20. Nc6 {[%clk 0:02:52.1]} 20... Nb6 {[%clk 0:02:22.3]} 21.
e4 {[%clk 0:02:49.8]} 21... Bg4 {[%clk 0:02:19.1]} 22. e5 {[%clk 0:02:47.1]}
22... Nc4 {[%clk 0:02:19.6]} 23. Rfe1 {[%clk 0:02:35.1]} 23... Bf5 {[%clk
0:02:11.9]} 24. Rbd1 {[%clk 0:02:27]} 24... Kf8 {[%clk 0:02:02.4]} 25. Be4
{[%clk 0:02:01.9]} 25... Bg4 {[%clk 0:01:46.2]} 26. Rd3 {[%clk 0:01:52]} 26...
Re8 {[%clk 0:01:32.2]} 27. Bg2 {[%clk 0:01:14.1]} 27... Bf5 {[%clk 0:01:22.1]}
28. Be4 {[%clk 0:00:49.5]} 28... Bd7 {[%clk 0:01:07.1]} 29. Bg2 {[%clk
0:00:34.1]} 29... dxe5 {[%clk 0:01:02.8]} 30. fxe5 {[%clk 0:00:33.8]} 30... Nxe5
{[%clk 0:01:02.4]} 31. Rde3 {[%clk 0:00:27.5]} 31... Nc4 {[%clk 0:00:51.7]} 32.
Rxe8+ {[%clk 0:00:24.3]} 32... Bxe8 {[%clk 0:00:53.1]} 33. Nb8 {[%clk
0:00:19.1]} 33... a5 {[%clk 0:00:48.3]} 34. Na6 {[%clk 0:00:20.1]} 34... Bd4
{[%clk 0:00:48]} 35. Nc7 {[%clk 0:00:21.4]} 35... Bd7 {[%clk 0:00:48.6]} 36. Bf1
{[%clk 0:00:18.1]} 36... Nd6 {[%clk 0:00:48.7]} 37. Rd1 {[%clk 0:00:12.6]} 37...
b4 {[%clk 0:00:43.6]} 38. Bg2 {[%clk 0:00:06.3]} 38... a4 {[%clk 0:00:44.2]} 39.
Na6 {[%clk 0:00:04.7]} 39... b3 {[%clk 0:00:43.5]} 40. axb3 {[%clk 0:00:06.6]}
40... a3 {[%clk 0:00:44.6]} 41. Bf1 {[%clk 0:00:08.5]} 41... a2 {[%clk
0:00:45.5]} 42. b4 {[%clk 0:00:09.1]} 42... cxb4 {[%clk 0:00:45.2]} 43. Nxb4
{[%clk 0:00:10.1]} 43... a1=Q {[%clk 0:00:46.3]} 44. Rxa1 {[%clk 0:00:11.6]}
44... Bxa1 {[%clk 0:00:47.6]} 45. Nd3 {[%clk 0:00:13.2]} 45... Ke7 {[%clk
0:00:47.5]} 46. Nc5 {[%clk 0:00:13.9]} 46... Bd4 {[%clk 0:00:48.3]} 47. Nb3
{[%clk 0:00:14.4]} 47... Bb6 {[%clk 0:00:47.7]} 48. Bg2 {[%clk 0:00:15.7]} 48...
Kf6 {[%clk 0:00:47.5]} 49. Nc1 {[%clk 0:00:15.6]} 49... Bb5 {[%clk 0:00:47.5]}
50. Na2 {[%clk 0:00:16]} 50... Bd4 {[%clk 0:00:47.4]} 51. Nb4 {[%clk 0:00:17.2]}
51... Ke5 {[%clk 0:00:45.6]} 52. h3 {[%clk 0:00:17.9]} 52... Bc5 {[%clk
0:00:45.5]} 53. Nc6+ {[%clk 0:00:18.1]} 53... Bxc6 {[%clk 0:00:45.7]} 54. dxc6
{[%clk 0:00:20]} 54... Bb6 {[%clk 0:00:47.1]} 55. Kf1 {[%clk 0:00:21]} 55... Bc7
{[%clk 0:00:46.9]} 56. Ke2 {[%clk 0:00:22.1]} 56... f5 {[%clk 0:00:48.2]} 57. h4
{[%clk 0:00:16.2]} 57... Ne4 {[%clk 0:00:48.2]} 58. Bf3 {[%clk 0:00:15.9]} 58...
Kd6 {[%clk 0:00:36.7]} 59. h5 {[%clk 0:00:15.7]} 59... Kxc6 {[%clk 0:00:35.4]}
60. hxg6 {[%clk 0:00:17.2]} 60... hxg6 {[%clk 0:00:36.5]} 61. Bg2 {[%clk
0:00:18.6]} 61... Kd5 {[%clk 0:00:36.7]} 62. Kf3 {[%clk 0:00:19.4]} 62... Ke5
{[%clk 0:00:34.2]} 63. Ke2 {[%clk 0:00:20]} 63... Bb6 {[%clk 0:00:34.8]} 64. f3
{[%clk 0:00:21.3]} 64... Ng3+ {[%clk 0:00:35.3]} 65. Ke1 {[%clk 0:00:21.6]}
65... Kf4 {[%clk 0:00:35.6]} 66. Kd2 {[%clk 0:00:23.1]} 66... Be3+ {[%clk
0:00:33.3]} 67. Kd3 {[%clk 0:00:24.6]} 67... Nh5 {[%clk 0:00:33.8]} 68. Bh1
{[%clk 0:00:19.4]} 68... Kg3 {[%clk 0:00:33.3]} 69. f4 {[%clk 0:00:19.7]} 69...
Bxf4 {[%clk 0:00:33.4]} 70. Ba8 {[%clk 0:00:21.6]} 70... Bb8 {[%clk 0:00:30.3]}
71. Ke2 {[%clk 0:00:23.5]} 71... g5 {[%clk 0:00:30]} 72. Kf1 {[%clk 0:00:25.4]}
72... Kh2 {[%clk 0:00:30.2]} 73. Kf2 {[%clk 0:00:26.6]} 73... g4 {[%clk
0:00:31.3]} 74. Kf1 {[%clk 0:00:28.5]} 74... g3 {[%clk 0:00:32.2]} 75. Ke2
{[%clk 0:00:29.9]} 75... g2 {[%clk 0:00:32.4]} 0-1